bitfinex-derivatives/quotes_SOLF0:USTF0_20220106
["timestamp","ask_amount","ask_price","bid_price","bid_amount"]
[1641489926322,4.0,151.45,151.44,13.98757557]
[1641489926521,11.201,151.45,151.41,37.29619371]
[1641489926720,4.0,151.43,151.42,6.99371021]
[1641489927122,11.201,151.45,151.42,6.99371021]
[1641489927324,7.201,151.45,151.42,6.99371021]
[1641489927925,7.201,151.45,151.41,37.29619371]
[1641489928325,7.201,151.45,151.37,6.59717641]
[1641489930030,11.201,151.45,151.37,6.59717641]
[1641489930229,7.201,151.45,151.37,55.25858052]
[1641489930431,4.0,151.46,151.37,55.25858052]
[1641489930728,59.32958,151.48,151.37,55.25858052]
[1641489931130,4.0,151.47,151.44,4.66268746]
[1641489931932,4.0,151.47,151.45,4.66268746]
[1641489932732,59.32958,151.48,151.44,4.66268746]
[1641489932932,55.32958,151.48,151.44,4.66268746]
[1641489933133,27.66479,151.48,151.44,4.66268746]
[1641489933335,37.29619371,151.51,151.44,4.66268746]
[1641489933534,37.29619371,151.52,151.45,4.66268746]
[1641489934235,37.29619371,151.52,151.42,6.02]
[1641489934236,154.68709,151.54,151.49,4.66268746]
[1641489934434,27.66479,151.54,151.49,4.66268746]
[1641489935335,27.66479,151.54,151.5,4.66268746]
[1641489937736,27.66479,151.54,151.49,4.66268746]
[1641489938738,64.96098371,151.56,151.49,4.66268746]
[1641489939338,27.66479,151.56,151.5,4.66268746]
[1641489939740,27.66479,151.56,151.5,11.40468746]
[1641489939939,37.29619371,151.57,151.5,11.40468746]
[1641489940540,98.82199371,151.59,151.52,4.66268746]
[1641489942042,98.82199371,151.59,151.54,4.66268746]
[1641489942243,64.96098371,151.6,151.54,4.66268746]
[1641489942942,27.66479,151.6,151.54,4.66268746]
[1641489943342,4.0,151.57,151.54,4.66268746]
[1641489943543,4.0,151.55,151.54,4.66268746]
[1641489943742,4.0,151.55,151.47,100.59149371]
[1641489943743,9.93,151.57,151.53,4.65859677]
[1641489943943,4.0,151.56,151.53,4.65859677]
[1641489944143,55.32958,151.54,151.53,4.65859677]
[1641489944643,55.32958,151.54,151.51,4.65859677]
[1641489946644,55.32958,151.54,151.5,4.65859677]
[1641489948548,27.66479,151.54,151.5,4.65859677]
[1641489949847,27.66479,151.54,151.51,4.65859677]
[1641489950648,27.66479,151.54,151.5,4.65859677]
[1641489950851,64.96098371,151.57,151.5,4.65859677]
[1641489951050,64.96098371,151.57,151.5,9.07159677]
[1641489951552,64.96098371,151.57,151.5,13.07159677]
[1641489951752,37.29619371,151.59,151.52,4.65859677]
[1641489952754,27.66479,151.6,151.51,63.1876]
[1641489952755,39.30864882,151.6,151.55,4.65859677]
[1641489953854,11.64385882,151.59,151.54,4.65859677]
[1641489954154,4.0,151.58,151.54,4.65859677]
[1641489954553,11.64385882,151.59,151.53,4.65859677]
[1641489956559,11.64385882,151.59,151.54,4.65859677]
[1641489957257,11.64385882,151.59,151.52,1.45630329]
[1641489957457,13.97468927,151.58,151.52,1.45630329]
[1641489958157,14.84578529,151.59,151.54,4.65817718]
[1641489959257,13.97481035,151.58,151.52,1.45630329]
[1641489959957,13.97481035,151.58,151.54,4.65826944]
[1641489960558,13.97481035,151.58,151.51,22.41996901]
[1641489960759,13.97481035,151.58,151.55,4.65816279]
[1641489961359,13.97481035,151.58,151.55,9.96016279]
[1641489961562,14.84578529,151.6,151.55,5.302]
[1641489962262,90.68839,151.61,151.55,5.302]
[1641489962464,27.66479,151.61,151.55,5.302]
[1641489962662,27.66479,151.61,151.51,4.0]
[1641489963664,27.66479,151.63,151.5,41.52309607]
[1641489963865,23.50152552,151.65,151.57,4.0]
[1641489964067,13.84152552,151.65,151.57,4.463]
[1641489964265,13.84152552,151.65,151.58,4.0]
[1641489964465,13.84152552,151.65,151.61,27.66479]
[1641489965067,13.84152552,151.63,151.61,27.66479]
[1641489965266,52.13367344,151.67,151.61,27.66479]
[1641489965469,52.13367344,151.67,151.63,4.0]
[1641489966369,14.83747973,151.7,151.65,27.66479]
[1641489966769,14.83747973,151.7,151.65,34.21379]
[1641489968073,37.29619371,151.72,151.65,38.82763184]
[1641489969070,37.29619371,151.72,151.65,32.27863184]
[1641489971573,31.41115136,151.74,151.66,6.07117361]
[1641489971574,37.29619371,151.73,151.66,6.07117361]
[1641489972473,37.29619371,151.73,151.66,10.07117361]
[1641489972675,37.29619371,151.73,151.66,6.07117361]
[1641489973074,37.29619371,151.73,151.66,4.61384184]
[1641489973276,27.66479,151.75,151.65,27.66479]
[1641489977481,6.595,151.77,151.63,10.58587987]
[1641489977881,10.595,151.77,151.63,10.58587987]
[1641489978083,10.595,151.77,151.64,4.0]
[1641489978283,4.0,151.76,151.63,10.58587987]
[1641489978482,27.66479,151.74,151.65,27.66479]
[1641489981586,32.26022268,151.74,151.65,27.66479]
[1641489982286,27.66479,151.74,151.65,27.66479]
[1641489983687,31.66479,151.74,151.65,27.66479]
[1641489983888,33.27979,151.74,151.65,27.66479]
[1641489984187,33.27979,151.74,151.66,4.0]
[1641489984588,4.59543268,151.73,151.66,4.0]
[1641489984787,4.59543268,151.73,151.67,10.58414538]
[1641489985389,4.59543268,151.73,151.67,6.58414538]
[1641489985589,27.66479,151.74,151.67,6.58414538]
[1641489985891,27.66479,151.74,151.73,5.27252176]
[1641489986589,4.59543268,151.79,151.73,12.49952176]
[1641489986790,4.59543268,151.79,151.76,5.27125912]
[1641489986990,93.02819,151.83,151.79,0.67487945]
[1641489987389,93.02819,151.83,151.73,13.55391517]
[1641489988192,93.02819,151.83,151.73,20.13524394]
[1641489988392,93.02819,151.83,151.73,13.55391517]
[1641489988592,93.02819,151.83,151.74,27.66479]
[1641489988793,97.02819,151.83,151.74,27.66479]
[1641489988993,93.02819,151.83,151.74,27.66479]
[1641489989693,97.02819,151.83,151.74,27.66479]
[1641489990495,93.02819,151.83,151.74,27.66479]
[1641489990995,97.02819,151.83,151.74,27.66479]
[1641489991695,93.02819,151.83,151.74,34.24568566]
[1641489991896,27.66479,151.83,151.74,40.57768566]
[1641489992295,27.66479,151.83,151.77,6.3252649]
[1641489992695,3.19230517,151.82,151.8,5.26976291]
[1641489993501,25.58807799,151.83,151.79,6.32432818]
[1641489994698,37.29619371,151.85,151.79,6.32432818]
[1641489995300,37.29619371,151.85,151.81,6.57808183]
[1641489995499,22.461004,151.85,151.82,6.32289594]
[1641489995899,126.48632127,151.9,151.82,6.32289594]
[1641489996299,4.0,151.89,151.82,6.32289594]
[1641489996799,150.15111127,151.9,151.82,6.32289594]
[1641489997601,154.15111127,151.9,151.82,6.32289594]
[1641489998001,150.15111127,151.9,151.82,6.32289594]
[1641489998202,4.0,151.88,151.82,6.32289594]
[1641489998604,150.15111127,151.9,151.82,6.32289594]
[1641489999003,122.48632127,151.9,151.82,6.32289594]
[1641489999204,13.95025071,151.85,151.82,6.32289594]
[1641489999504,13.95025071,151.85,151.83,4.0]
[1641489999703,13.95025071,151.85,151.82,6.32289594]
[1641489999904,11.60602947,151.89,151.87,6.32114277]
[1641490000305,131.72372127,151.93,151.87,6.32114277]
[1641490000603,9.94,151.93,151.87,6.32114277]
[1641490003808,9.94,151.93,151.91,5.26614146]
[1641490004408,11.60155588,151.94,151.87,11.00014277]
[1641490004409,11.60155588,151.94,151.92,5.26579239]
[1641490004807,6.33679775,151.94,151.91,6.31925285]
[1641490005409,27.66479,151.96,151.91,6.31925285]
[1641490006109,27.66479,151.96,151.91,11.17925285]
[1641490006510,16.53184309,152.0,151.95,6.31786007]
[1641490006710,16.53184309,152.0,151.95,13.44186007]
[1641490007710,16.53184309,152.01,151.95,13.44186007]
[1641490007909,16.53184309,152.01,151.95,6.31786007]
[1641490009510,27.66479,152.04,151.95,10.31786007]
[1641490009711,27.66479,152.04,151.98,6.31657887]
[1641490010317,27.66479,152.04,152.0,5.262966]
[1641490010916,4.0,152.01,152.0,5.262966]
[1641490011116,4.0,152.01,151.91,6.57375756]
[1641490011323,4.0,151.95,151.91,6.57375756]
[1641490011615,4.0,151.98,151.9,7.58376986]
[1641490011816,4.0,151.99,151.9,7.58376986]
[1641490012117,4.0,152.0,151.9,7.58376986]
[1641490012815,4.0,151.99,151.9,7.58376986]
[1641490014117,4.0,151.96,151.9,7.58376986]
[1641490014321,4.0,151.99,151.9,7.58376986]
[1641490014921,4.0,151.98,151.9,7.58376986]
[1641490015222,27.66479,152.0,151.9,7.58376986]
[1641490015423,4.0,151.98,151.9,7.58376986]
[1641490016021,4.0,151.96,151.9,7.58376986]
[1641490016221,4.0,151.95,151.9,7.58376986]
[1641490016423,4.0,151.95,151.89,5.26696055]
[1641490016922,37.17636442,151.97,151.89,5.26696055]
[1641490017125,27.66479,151.95,151.89,5.26696055]
[1641490017322,31.66479,151.95,151.89,5.26696055]
[1641490017522,27.66479,151.95,151.89,5.26696055]
[1641490017923,31.66479,151.95,151.89,5.26696055]
[1641490018124,27.66479,151.95,151.89,5.26696055]
[1641490018324,27.66479,151.95,151.92,5.26591163]
[1641490018723,37.17636442,151.96,151.92,5.26591163]
[1641490019123,27.66479,151.95,151.92,5.26591163]
[1641490020325,27.66479,151.95,151.89,5.26692149]
[1641490021928,4.0,151.92,151.89,5.26692149]
[1641490022127,4.0,151.9,151.89,5.26692149]
[1641490022326,4.0,151.9,151.85,6.3219036]
[1641490022929,4.0,151.92,151.85,6.3219036]
[1641490023128,27.66479,151.9,151.85,6.3219036]
[1641490023328,2.96725485,151.88,151.85,6.3219036]
[1641490023827,2.96725485,151.88,151.82,7.58771129]
[1641490024228,2.96725485,151.86,151.82,7.58771129]
[1641490024830,2.96725485,151.86,151.77,46.28433782]
[1641490025130,27.66479,151.83,151.77,46.28433782]
[1641490026132,27.66479,151.83,151.77,9.1079734]
[1641490026933,2.96725485,151.82,151.77,9.1079734]
[1641490027134,30.63204485,151.83,151.77,9.1079734]
[1641490027333,2.96725485,151.82,151.77,9.1079734]
[1641490027534,30.63204485,151.83,151.76,6.99786239]
[1641490028635,2.96725485,151.8,151.76,6.99786239]
[1641490029036,2.96725485,151.8,151.75,27.66479]
[1641490030035,27.66479,151.83,151.75,27.66479]
[1641490030736,41.61988674,151.83,151.76,20.95317936]
[1641490030936,44.58714159,151.83,151.76,20.95317936]
[1641490031137,2.96725485,151.82,151.76,20.95317936]
[1641490031742,41.61988674,151.83,151.76,20.95317936]
[1641490031943,44.58714159,151.83,151.77,5.27108637]
[1641490032442,41.61988674,151.83,151.76,20.95317936]
[1641490033445,41.61988674,151.83,151.76,21.98592451]
[1641490034345,41.61988674,151.83,151.78,13.95509674]
[1641490034346,27.66479,151.83,151.78,13.95509674]
[1641490034547,27.66479,151.83,151.78,19.22009674]
[1641490035346,27.66479,151.83,151.79,1.46148522]
[1641490035545,2.96725485,151.8,151.79,1.46148522]
[1641490035948,27.66479,151.83,151.79,1.46148522]
[1641490036150,27.66479,151.83,151.79,10.10819835]
[1641490036348,27.66479,151.83,151.8,1.03274515]
[1641490036548,27.66479,151.83,151.79,10.10819835]
[1641490036747,41.61988674,151.85,151.79,10.10819835]
[1641490036748,41.61988674,151.85,151.82,5.26914947]
[1641490036947,13.95509674,151.85,151.82,5.26914947]
[1641490037151,13.95509674,151.87,151.85,5.26815323]
[1641490037750,13.95509674,151.87,151.82,5.26929081]
[1641490038151,17.143279,151.89,151.86,1.46148522]
[1641490038953,17.143279,151.89,151.88,1.03274515]
[1641490039252,37.17636442,151.93,151.88,7.12874515]
[1641490039453,37.17636442,151.93,151.92,27.66479]
[1641490039662,24.35964342,151.93,151.92,35.25853515]
[1641490039858,19.09447245,151.93,151.92,35.25853515]
[1641490040056,56.01022127,151.97,151.92,35.25853515]
[1641490040252,56.01022127,151.97,151.96,1.03274515]
[1641490040455,37.18389357,152.0,151.96,6.23574515]
[1641490040657,37.18389357,152.0,151.98,1.03274515]
[1641490040853,37.18389357,152.0,151.96,5.203]
[1641490041252,37.18389357,152.0,151.98,1.03274515]
[1641490041456,37.18389357,152.0,151.96,32.86779]
[1641490041658,37.18389357,152.0,151.99,1.03274515]
[1641490042052,37.18389357,152.0,151.96,32.86779]
[1641490042254,11.57886156,152.04,151.96,32.86779]
[1641490042453,11.57886156,152.04,151.99,1.03274515]
[1641490042655,11.57886156,152.04,151.96,32.86779]
[1641490042854,11.57886156,152.04,152.0,1.03274515]
[1641490043054,11.57886156,152.04,152.0,4.765]
[1641490043454,64.84868357,152.05,152.02,1.03274515]
[1641490043656,27.66479,152.05,152.01,1.03274515]
[1641490043854,27.66479,152.05,151.97,10.99808262]
[1641490044057,64.84868357,152.08,151.97,10.99808262]
[1641490044255,64.84868357,152.08,152.03,1.03274515]
[1641490044456,64.84868357,152.08,152.02,1.03274515]
[1641490044758,11.57425881,152.07,151.97,6.99808262]
[1641490044957,11.57425881,152.07,152.02,1.03274515]
[1641490045457,11.57425881,152.07,152.0,27.66479]
[1641490045757,11.57425881,152.07,152.02,1.03274515]
[1641490046158,11.57425881,152.07,152.01,5.262471]
[1641490046557,48.75815238,152.08,152.01,5.262471]
[1641490047760,51.72540723,152.08,152.02,1.03274515]
[1641490047960,51.72540723,152.08,152.01,5.262471]
[1641490048163,2.96725485,152.02,152.01,9.90767968]
[1641490048363,2.96725485,152.02,151.97,1.03274515]
[1641490048562,2.96725485,152.02,151.94,43.49434411]
[1641490049164,40.15114842,152.03,151.94,6.31797969]
[1641490049362,2.96725485,152.02,151.96,6.29696076]
[1641490049563,27.66479,152.01,151.96,6.29696076]
[1641490049764,37.18389357,152.03,152.0,6.29589648]
[1641490050165,31.92213074,152.03,151.98,6.31645015]
[1641490050463,31.92213074,152.03,152.02,1.03274515]
[1641490050866,11.57425881,152.06,152.02,1.03274515]
[1641490051066,11.57425881,152.09,152.02,1.03274515]
[1641490051265,11.57425881,152.09,152.01,7.3479473]
[1641490051266,14.54151366,152.09,152.01,7.3479473]
[1641490051470,27.66479,152.08,152.01,7.3479473]
[1641490051670,27.66479,152.08,152.01,6.31520215]
[1641490051969,11.57425881,152.09,152.03,1.03274515]
[1641490052169,2.96725485,152.09,152.03,1.03274515]
[1641490052369,2.96725485,152.09,152.01,6.31520215]
[1641490052771,14.54151366,152.09,152.01,6.31520215]
[1641490053469,2.96725485,152.08,152.01,6.31520215]
[1641490053670,11.57425881,152.09,152.01,7.3479473]
[1641490053871,14.54151366,152.09,152.01,7.3479473]
[1641490054170,14.54151366,152.09,152.01,6.31520215]
[1641490054370,11.57425881,152.09,152.05,1.03274515]
[1641490054970,11.57425881,152.09,152.03,1.03274515]
[1641490055372,11.57425881,152.09,152.01,4.0]
[1641490055571,11.57425881,152.09,152.08,1.03274515]
[1641490056172,28.08062943,152.1,152.07,3.19508873]
[1641490056371,28.08062943,152.1,152.04,27.66479]
[1641490056572,28.08062943,152.11,152.04,27.66479]
[1641490057174,28.08062943,152.12,152.04,27.66479]
[1641490057375,4.0,152.1,152.04,27.66479]
[1641490057574,4.0,152.1,152.0,6.3154564]
[1641490057776,27.66479,152.11,152.0,6.3154564]
[1641490058573,27.66479,152.11,152.0,10.3154564]
[1641490058774,27.66479,152.11,152.01,4.0]
[1641490058976,11.57425881,152.1,152.03,4.0]
[1641490059174,11.57425881,152.1,152.04,6.31375355]
[1641490060578,55.74541943,152.13,152.04,6.31375355]
[1641490061277,15.57425881,152.12,152.04,6.31375355]
[1641490061677,11.57425881,152.12,152.04,11.5752668]
[1641490062079,4.0,152.1,152.04,11.5752668]
[1641490062277,15.57425881,152.12,152.04,5.26151325]
[1641490064479,15.57425881,152.12,152.06,5.26097447]
[1641490064677,11.57425881,152.12,152.06,5.26097447]
[1641490065583,4.0,152.09,152.06,5.26097447]
[1641490065783,15.57425881,152.12,152.06,5.26097447]
[1641490066682,11.57425881,152.12,152.06,5.26097447]
[1641490066884,11.57425881,152.12,152.08,5.26010093]
[1641490069086,11.57425881,152.12,152.08,5.26037853]
[1641490069488,11.57425881,152.12,152.04,6.31383204]
[1641490069786,15.57425881,152.12,152.04,6.31383204]
[1641490070193,4.0,152.1,152.04,6.31383204]
[1641490070388,13.93348915,152.05,152.04,6.31383204]
[1641490071087,37.15597106,152.09,152.04,6.31383204]
[1641490071290,37.15597106,152.07,152.04,6.31383204]
[1641490073891,13.9347938,152.05,152.04,6.31383204]
[1641490074692,37.15597106,152.08,152.04,6.31383204]
[1641490075994,13.93450435,152.05,152.04,6.31383204]
[1641490076694,37.15597106,152.08,152.04,6.31383204]
[1641490077495,37.15597106,152.07,151.99,72.99096441]
[1641490077694,37.15597106,152.07,151.99,7.57916441]
[1641490077893,37.15597106,152.07,152.02,27.66479]
[1641490078595,13.93636003,152.03,152.02,27.66479]
[1641490079193,17.93636003,152.03,151.99,7.57916441]
[1641490079395,4.0,152.01,151.95,21.51417745]
[1641490079593,6.57548659,152.04,151.95,21.51417745]
[1641490079793,4.0,151.98,151.95,21.51417745]
[1641490079995,27.66479,151.97,151.95,21.51417745]
[1641490080595,27.66479,151.97,151.95,7.5811801]
[1641490081597,3.17943045,151.96,151.95,7.5811801]
[1641490082899,17.11937855,151.96,151.95,7.5811801]
[1641490083903,13.9399481,151.98,151.95,7.5811801]
[1641490084402,13.9399481,151.98,151.95,0.14619691]
[1641490084600,13.9399481,151.98,151.93,7.58230077]
[1641490085002,13.9399481,151.96,151.93,7.58230077]
[1641490086503,13.9399481,151.96,151.93,11.58230077]
[1641490086901,17.11937855,151.99,151.94,1.46651013]
[1641490087100,17.11937855,151.99,151.94,6.82951013]
[1641490088405,13.9399481,152.0,151.95,1.46651013]
[1641490089507,17.11937855,152.01,151.95,1.46651013]
[1641490089905,17.11937855,152.01,151.96,5.26434286]
[1641490090305,17.11937855,152.01,151.97,1.46651013]
[1641490091308,3.17943045,152.01,151.97,1.46651013]
[1641490092208,3.17943045,152.01,151.99,5.26327493]
[1641490092407,3.17943045,152.01,151.99,11.62327493]
[1641490092606,11.85724921,152.02,151.99,6.36]
[1641490093007,37.15597106,152.05,151.99,6.36]
[1641490093408,15.57248096,152.08,151.99,6.36]
[1641490094309,43.23727096,152.08,151.99,6.36]
[1641490095609,11.57248096,152.07,151.99,6.36]
[1641490096312,48.72845202,152.07,151.99,34.02479]
[1641490096511,48.72845202,152.07,151.99,40.34060729]
[1641490097112,11.57248096,152.07,151.99,40.34060729]
[1641490098315,11.57248096,152.07,152.02,5.26218637]
[1641490099715,4.0,152.06,152.02,5.26218637]
[1641490100621,41.15597106,152.06,152.02,5.26218637]
[1641490101422,4.0,152.05,152.02,5.26218637]
[1641490101722,4.0,152.05,152.01,5.26255132]
[1641490102524,31.66479,152.05,152.01,5.26255132]
[1641490103124,11.57248096,152.04,152.01,5.26255132]
[1641490103823,31.66479,152.05,152.01,5.26255132]
[1641490104423,27.66479,152.05,152.01,5.26255132]
[1641490104826,11.57621682,152.04,152.01,5.26255132]
[1641490105624,31.66479,152.05,152.01,5.26255132]
[1641490106425,15.57627906,152.04,152.01,5.26255132]
[1641490107725,4.0,152.03,152.01,5.26255132]
[1641490108526,4.0,152.03,151.98,6.31627147]
[1641490109931,4.0,152.03,151.98,10.96318705]
[1641490110129,4.0,152.01,151.98,10.96318705]
[1641490110329,4.0,152.03,151.98,10.96318705]
[1641490110527,11.57627906,152.04,151.98,6.31627147]
[1641490110528,27.66479,152.01,151.98,6.31627147]
[1641490112733,41.15597106,152.04,151.98,6.31627147]
[1641490112936,37.15597106,152.04,151.98,6.31627147]
[1641490113135,37.15597106,152.04,152.02,5.2624179]
[1641490113435,27.66479,152.05,152.02,5.2624179]
[1641490114540,37.42479,152.08,152.02,5.2624179]
[1641490115339,37.42479,152.08,152.02,10.5694179]
[1641490115340,74.58076106,152.08,152.02,10.5694179]
[1641490115539,74.58076106,152.08,152.04,5.26147433]
[1641490115939,11.57256169,152.07,152.04,5.26147433]
[1641490117342,11.57256169,152.07,152.06,5.26088188]
[1641490117843,11.57256169,152.07,152.06,10.68788188]
[1641490118544,5.57256169,152.09,152.06,10.68788188]
[1641490118745,0.3125942,152.09,152.08,6.3124352]
[1641490119645,37.15597106,152.1,152.08,6.3124352]
[1641490119848,37.15597106,152.12,152.08,6.3124352]
[1641490120348,37.15597106,152.12,152.05,62.2503]
[1641490120546,4.0,152.09,152.04,4.64691558]
[1641490120946,37.15597106,152.12,152.05,4.64691558]
[1641490121752,41.15597106,152.09,152.03,7.5772702]
[1641490122553,68.82076106,152.09,152.03,7.5772702]
[1641490122956,13.93651887,152.05,152.03,7.5772702]
[1641490124355,13.93651887,152.05,152.04,5.26162154]
[1641490126456,8.67561079,152.05,152.03,13.8916144]
[1641490126655,8.67561079,152.05,152.03,6.3143442]
[1641490126856,37.15597106,152.09,152.01,4.64691558]
[1641490127155,37.15597106,152.09,152.02,4.64691558]
[1641490127854,37.15597106,152.09,152.0,89.42189]
[1641490127855,37.15597106,152.09,152.01,4.64691558]
[1641490128656,4.6454246,152.02,152.01,4.64691558]
[1641490130056,37.15597106,152.09,152.02,1.66935762]
[1641490130357,37.15597106,152.08,152.01,4.64691558]
[1641490131260,37.15597106,152.09,152.01,4.64691558]
[1641490132258,64.82076106,152.09,152.01,4.64691558]
[1641490132757,67.99773042,152.09,152.01,4.64691558]
[1641490132960,40.33294042,152.09,152.01,4.64691558]
[1641490133660,37.15597106,152.08,152.01,4.64691558]
[1641490134260,4.0,152.07,152.01,4.64691558]
[1641490134461,4.0,152.07,151.98,4.0]
[1641490135360,3.17696936,152.06,151.99,1.46837148]
[1641490136162,7.17696936,152.06,151.99,1.46837148]
[1641490136564,4.0,152.05,151.99,1.46837148]
[1641490136765,27.66479,152.04,151.99,1.46837148]
[1641490137063,4.0,152.0,151.98,1.46837148]
[1641490137564,67.1643,152.03,151.98,1.46837148]
[1641490138164,3.17696936,151.99,151.93,1.46837148]
[1641490139267,27.66479,152.0,151.93,8.48113974]
[1641490139969,4.0,151.97,151.93,8.48113974]
[1641490140369,3.17696936,151.99,151.93,8.48113974]
[1641490140768,27.66479,151.96,151.93,8.48113974]
[1641490141170,27.66479,151.96,151.9,76.33503974]
[1641490141370,4.0,151.98,151.9,76.33503974]
[1641490142274,3.17696936,151.97,151.91,8.48113974]
[1641490145777,4.0,151.98,151.91,12.48113974]
[1641490145977,27.66479,152.0,151.93,4.0]
[1641490146978,3.17873734,151.99,151.94,5.46837148]
[1641490147180,3.17873734,151.99,151.97,4.0]
[1641490147378,3.17873734,151.99,151.96,9.656]
[1641490147778,3.17831533,152.01,151.96,9.656]
[1641490148580,37.15597106,152.06,151.96,9.656]
[1641490148781,51.90496549,152.07,151.97,1.46837148]
[1641490148982,27.66479,152.06,151.97,66.08047148]
[1641490149381,51.90496549,152.07,152.02,4.0]
[1641490149581,51.90496549,152.07,152.02,8.515]
[1641490149783,14.74899443,152.05,152.02,8.515]
[1641490149981,14.74899443,152.05,152.02,4.515]
[1641490150682,3.17773031,152.05,151.98,1.46837148]
[1641490150982,3.17773031,152.07,152.03,1.46837148]
[1641490151785,31.66479,152.08,151.98,8.48092043]
[1641490151984,27.66479,152.08,151.98,8.48092043]
[1641490152584,14.74521606,152.07,151.98,8.48092043]
[1641490156689,13.93597279,152.06,151.99,13.93597279]
[1641490157289,13.93597279,152.06,151.99,41.60076279]
[1641490157491,17.1124893,152.07,151.99,41.60076279]
[1641490158293,13.93565387,152.06,152.0,1.46842228]
[1641490159094,14.74521498,152.07,151.99,13.93597279]
[1641490159394,14.74521498,152.07,152.0,27.66479]
[1641490159896,3.17683543,152.07,152.0,27.66479]
[1641490160099,3.17683543,152.07,152.01,1.46842228]
[1641490160798,41.59953843,152.08,152.01,22.41685896]
[1641490161800,3.17622063,152.07,152.01,22.41685896]
[1641490162605,41.59865959,152.08,152.01,22.41685896]
[1641490163400,3.17613833,152.07,152.01,22.41685896]
[1641490164203,13.93389508,152.07,152.01,1.46842228]
[1641490165001,17.10992264,152.08,152.01,1.46842228]
[1641490167303,13.93383021,152.07,152.01,1.46842228]
[1641490168106,14.74218748,152.08,152.01,1.46842228]
[1641490168306,14.74218748,152.08,152.02,4.0]
[1641490168807,14.74218748,152.08,152.01,11.77642228]
[1641490169006,27.66479,152.09,152.01,6.308]
[1641490169206,27.66479,152.09,152.01,10.57036111]
[1641490169405,28.29642889,152.09,152.01,7.202]
[1641490169606,28.29642889,152.09,152.02,3.36836111]
[1641490169806,28.29642889,152.09,152.03,3.36836111]
[1641490170309,28.29642889,152.09,152.02,3.36836111]
[1641490170508,28.29642889,152.09,152.01,76.53986111]
[1641490170908,28.29642889,152.09,152.02,3.36836111]
[1641490171409,28.29642889,152.09,152.03,3.36836111]
[1641490171610,28.29642889,152.09,152.02,3.36836111]
[1641490172611,28.29642889,152.09,152.03,3.36836111]
[1641490172815,28.29642889,152.09,152.02,3.36836111]
[1641490178119,3.17380292,152.08,152.02,13.93597279]
[1641490178717,3.80544181,152.08,152.02,13.93597279]
[1641490178919,3.80544181,152.08,152.03,13.93597279]
[1641490179717,3.17380292,152.07,152.03,13.93597279]
[1641490179918,3.17380292,152.07,152.02,13.93597279]
[1641490180318,3.17380292,152.07,152.02,17.3043339]
[1641490180518,3.17380292,152.08,152.02,18.77359456]
[1641490180720,3.17380292,152.08,152.02,24.32259456]
[1641490180919,3.17380292,152.08,152.02,20.95423345]
[1641490181122,0.63163889,152.06,152.02,20.95423345]
[1641490181721,0.63163889,152.06,152.03,1.46926066]
[1641490181922,3.80544181,152.08,152.03,1.46926066]
[1641490182122,3.17380292,152.08,152.03,1.46926066]
[1641490182322,3.17380292,152.05,152.03,1.46926066]
[1641490183927,3.17380292,152.05,152.01,1.46926066]
[1641490184127,13.81062103,152.07,152.01,1.46926066]
[1641490184728,14.44225992,152.08,152.02,3.36836111]
[1641490184929,14.44225992,152.08,152.01,11.65262177]
[1641490185229,14.44225992,152.08,152.01,8.28426066]
[1641490185529,3.17380292,152.07,152.02,1.46926066]
[1641490186230,3.80544181,152.07,152.02,1.46926066]
[1641490187029,3.80544181,152.07,152.03,27.66479]
[1641490187330,0.63163889,152.07,152.03,27.66479]
[1641490188129,0.63163889,152.07,152.04,1.46926066]
[1641490188332,13.81062103,152.09,152.04,1.46926066]
[1641490188729,14.44225992,152.09,152.04,1.46926066]
[1641490189131,0.63163889,152.09,152.04,4.83762177]
[1641490190332,0.63163889,152.09,152.05,15.40523345]
[1641490190534,0.63163889,152.09,152.05,24.17659456]
[1641490191134,0.63163889,152.09,152.07,27.66479]
[1641490191335,0.63163889,152.08,152.05,16.57555662]
[1641490191535,0.63163889,152.08,152.05,11.17255662]
[1641490192339,0.63163889,152.08,152.05,6.56771312]
[1641490195343,4.6048435,152.11,152.05,6.56771312]
[1641490195543,4.6048435,152.11,152.05,13.75271312]
[1641490195844,0.63163889,152.09,152.05,13.75271312]
[1641490196344,0.63163889,152.06,152.05,13.75271312]
[1641490197142,0.63163889,152.07,152.05,13.75271312]
[1641490197343,97.5761335,152.12,152.05,13.75271312]
[1641490198144,4.6048435,152.11,152.05,13.75271312]
[1641490198747,0.63163889,152.06,152.05,13.75271312]
[1641490199146,5.23648239,152.06,152.05,18.35755662]
[1641490199844,5.23648239,152.06,152.05,15.22197723]
[1641490200445,4.6048435,152.06,152.05,15.22197723]
[1641490201247,4.6048435,152.07,152.05,15.22197723]